fUSD/lending_fUSD_20260131
["ID","MTS","AMOUNT","RATE_DAILY","PERIOD"]
[404097035,1769829038506,-433.0,0.000175,2]
[404097037,1769829038516,-813.19605426,0.000175,2]
[404097039,1769829038527,-2444.0,0.00017529,2]
[404097042,1769829038536,-280.03725112,0.00017539,2]
[404097044,1769829038546,-290.39862941,0.00017594,2]
[404097046,1769829038555,-301.1433787,0.00017649,2]
[404097048,1769829038568,-500.0,0.00017699,2]
[404097050,1769829038577,-500.0,0.00017703,2]
[404097052,1769829038588,-708.96052804,0.00017703,2]
[404097054,1769829038597,-151.29505011,0.00017703,2]
[404097056,1769829038606,-581.76838143,0.00017703,2]
[404097058,1769829038616,-859.80605061,0.00017703,2]
[404097060,1769829038626,-1000.0,0.00017703,2]
[404097062,1769829038635,-1000.0,0.00017703,2]
[404097064,1769829038644,-1000.0,0.00017703,2]
[404097066,1769829038655,-664.48659195,0.00017703,2]
[404097068,1769829038667,-854.2589148,0.00017703,2]
[404097070,1769829038676,-721.12765535,0.00017703,2]
[404097072,1769829038686,-500.0,0.00017703,2]
[404097074,1769829038695,-314.35815498,0.00017703,2]
[404097076,1769829038705,-1270.0,0.00017714,2]
[404097078,1769829038714,-500.0,0.00017754,2]
[404097080,1769829038724,-500.0,0.00017809,2]
[404097082,1769829038734,-500.0,0.00017863,2]
[404097084,1769829038744,-541.627,0.00017897,2]
[404097087,1769829038754,-172.1956369,0.000179,2]
[404097089,1769829038764,-161.09533848,0.000179,2]
[404097090,1769829038773,-12887.55861158,0.000179,2]
[404097093,1769829038782,-497.17741184,0.000179,2]
[404097095,1769829038792,-777.78192954,0.000179,2]
[404097097,1769829038801,-500.0,0.00017918,2]
[404097099,1769829038810,-496.52767617,0.00017973,2]
[404097101,1769829038820,-483.58375736,0.00017973,2]
[404097103,1769829038830,-500.0,0.00017973,2]
[404097105,1769829038839,-500.0,0.00017973,2]
[404097107,1769829038848,-500.0,0.00017973,2]
[404097109,1769829038858,-500.0,0.00017973,2]
[404097111,1769829038867,-500.0,0.00017973,2]
[404097113,1769829038877,-500.0,0.00017973,2]
[404097115,1769829038887,-500.0,0.00017973,2]
[404097117,1769829038897,-500.0,0.00017973,2]
[404097119,1769829038907,-500.0,0.00017973,2]
[404097121,1769829038916,-500.0,0.00017973,2]
[404097123,1769829038926,-339.12,0.00017973,2]
[404097125,1769829038936,-1680.0,0.00017982,2]
[404097127,1769829038946,-481.27233715,0.00017998,2]
[404097129,1769829038955,-177.64991151,0.00017998,2]
[404097131,1769829038965,-500.0,0.00017998,2]
[404097133,1769829038975,-500.0,0.00017998,2]
[404097135,1769829038984,-500.0,0.00017998,2]
[404097137,1769829038994,-167.06696304,0.00017998,2]
[404097139,1769829039005,-500.0,0.00017998,2]
[404097141,1769829039015,-500.0,0.00017998,2]
[404097144,1769829039025,-500.0,0.00017998,2]
[404097146,1769829039035,-500.0,0.00017998,2]
[404097148,1769829039044,-500.0,0.00017998,2]
[404097150,1769829039054,-500.0,0.00017998,2]
[404097152,1769829039063,-500.0,0.00017998,2]
[404097154,1769829039073,-500.0,0.00017998,2]
[404097156,1769829039082,-500.0,0.00017998,2]
[404097158,1769829039092,-217.24351004,0.00017998,2]
[404097160,1769829039101,-500.0,0.00017998,2]
[404097162,1769829039111,-500.0,0.00017998,2]
[404097164,1769829039123,-500.0,0.00017998,2]
[404097166,1769829039132,-500.0,0.00017998,2]
[404097168,1769829039141,-500.0,0.00017998,2]
[404097170,1769829039150,-500.0,0.00017998,2]
[404097172,1769829039159,-500.0,0.00017998,2]
[404097174,1769829039169,-500.0,0.00017998,2]
[404097176,1769829039179,-500.0,0.00017998,2]
[404097178,1769829039188,-500.0,0.00017998,2]
[404097180,1769829039198,-500.0,0.00017998,2]
[404097182,1769829039208,-500.0,0.00017998,2]
[404097184,1769829039217,-31152.14895376,0.00017999,2]
[404097186,1769829039226,-517.77527262,0.00017999,2]
[404097188,1769829039236,-516.31391694,0.00017999,2]
[404097190,1769829039249,-519.10967019,0.00017999,2]
[404097192,1769829039259,-542.30144481,0.00017999,2]
[404097194,1769829039269,-500.0,0.00017999,2]
[404097197,1769829039278,-458.48,0.00017999,2]
[404097199,1769829039289,-190.34462806,0.00017999,2]
[404097201,1769829039299,-279.82553035,0.00017999,2]
[404097203,1769829039307,-192.53517147,0.00017999,2]
[404097205,1769829039319,-1033.0,0.00018,2]
[404097207,1769829039328,-45870.95557226,0.00018,2]
[404097215,1769829039392,-3379.8,0.00018,2]
[404097234,1769829040172,-264.546,0.00018,2]
[404097239,1769829040706,-280207.04408887,0.00018,2]
[404097240,1769829040741,-10471.7903211,0.00018,2]
[404097241,1769829040775,-493.54764643,0.00018,2]
[404097242,1769829040786,-420.69,0.00018,2]
[404097243,1769829040796,-319.13861914,0.00018,2]
[404097245,1769829043632,-504.09113021,0.00017703,2]
[404097246,1769829043642,-1922.28275919,0.00018,2]
[404097251,1769829046260,-6576.0,0.00017529,2]
[404097252,1769829046270,-6563.11305013,0.00018,2]
[404097253,1769829046288,-3981.039,0.00018,2]
[404097254,1769829046365,-3801.25118849,0.00018,2]
[404097255,1769829046422,-2220.94460985,0.00018,2]
[404097256,1769829046477,-209422.39419964,0.00018,2]
[404097260,1769829109863,22241.9,0.00021,30]
[404097261,1769829273113,276.0042027,0.00021,30]
[404097264,1769829683697,260.49,0.00012889,2]
[404097266,1769829991647,-151.0,0.00016034,2]
[404097267,1769829991668,-609.65692729,0.00016037,2]
[404097268,1769829991688,-253.59134471,0.00016037,2]
[404097269,1769829991710,-151.0,0.0001604,2]
[404097270,1769829991732,-151.0,0.0001604,2]
[404097271,1769829991752,-151.0,0.00016047,2]
[404097272,1769829991773,-240.92661795,0.00016372,2]
[404097273,1769830035534,-151.0,0.00016048,2]
[404097274,1769830035555,-151.0,0.00016058,2]
[404097275,1769830035578,-200.0,0.00016363,2]
[404097276,1769830035598,-500.0,0.00016363,2]
[404097277,1769830035619,-151.0,0.00016363,2]
[404097278,1769830035641,-151.0,0.00016363,2]
[404097279,1769830035663,-151.0,0.00016363,2]
[404097280,1769830035683,-151.0,0.00016363,2]
[404097281,1769830035705,-151.0,0.00016363,2]
[404097282,1769830035727,-1200.0,0.00016372,2]
[404097283,1769830035746,-456.0,0.00016372,2]
[404097284,1769830035766,-303.03557478,0.00016373,2]
[404097289,1769830086396,192.28424999,0.00021,30]
[404097293,1769830087719,256.37899998,0.00021,30]
[404097303,1769830232303,-151.0,0.0001609,2]
[404097304,1769830232313,-300.0,0.00016362,2]
[404097305,1769830232323,-1200.0,0.00016362,2]
[404097306,1769830232332,-287.0,0.00016362,2]
[404097307,1769830232341,-151.0,0.00016363,2]
[404097308,1769830232351,-500.0,0.00016363,2]
[404097309,1769830232360,-151.0,0.00016363,2]
[404097310,1769830232369,-151.0,0.00016363,2]
[404097311,1769830232378,-500.0,0.00016363,2]
[404097312,1769830232388,-151.0,0.00016363,2]
[404097313,1769830232398,-500.0,0.00016363,2]
[404097314,1769830232407,-151.0,0.00016363,2]
[404097315,1769830232417,-500.0,0.00016363,2]
[404097316,1769830232426,-151.0,0.00016363,2]
[404097317,1769830232435,-151.0,0.00016363,2]
[404097318,1769830232445,-151.0,0.00016363,2]
[404097319,1769830232455,-500.0,0.00016363,2]
[404097320,1769830232464,-151.0,0.00016363,2]
[404097321,1769830232474,-513.79218574,0.00016363,2]
[404097322,1769830232483,-151.0,0.00016363,2]
[404097323,1769830232493,-151.0,0.00016363,2]
[404097324,1769830232502,-151.0,0.00016363,2]
[404097325,1769830232512,-151.0,0.00016363,2]
[404097326,1769830232521,-500.0,0.00016363,2]
[404097327,1769830232531,-151.0,0.00016363,2]
[404097328,1769830232540,-151.0,0.00016363,2]
[404097329,1769830232549,-151.0,0.00016363,2]
[404097331,1769830232559,-202.25964161,0.00016363,2]
[404097333,1769830232568,-151.0,0.00016363,2]
[404097335,1769830232577,-151.0,0.00016363,2]
[404097337,1769830232586,-151.0,0.00016363,2]
[404097339,1769830232595,-151.0,0.00016363,2]
[404097341,1769830232604,-151.0,0.00016363,2]
[404097343,1769830232615,-151.0,0.00016363,2]
[404097345,1769830232624,-151.0,0.00016363,2]
[404097347,1769830232633,-153.91115054,0.00016363,2]
[404097349,1769830232642,-503.52422568,0.00016373,2]
[404097351,1769830232652,-500.0,0.00016373,2]
[404097353,1769830232662,-500.94761523,0.00016373,2]
[404097355,1769830232671,-168.0859562,0.00016373,2]
[404097357,1769830232681,-541.4692073,0.00016373,2]
[404097360,1769830232695,-500.0,0.00016373,2]
[404097363,1769830232704,-500.0,0.00016373,2]
[404097367,1769830232715,-500.80905886,0.00016373,2]
[404097370,1769830232725,-500.0,0.00016373,2]
[404097372,1769830232737,-500.0,0.00016373,2]
[404097375,1769830232748,-500.0,0.00016373,2]
[404097378,1769830232758,-500.0,0.00016373,2]
[404097380,1769830232768,-401.6985914,0.00016373,2]
[404097383,1769830232778,-500.0,0.00016373,2]
[404097386,1769830232789,-501.65706127,0.00016373,2]
[404097388,1769830232800,-500.0,0.00016373,2]
[404097390,1769830232820,-500.0,0.00016373,2]
[404097392,1769830232841,-500.0,0.00016373,2]
[404097394,1769830232857,-500.0,0.00016373,2]
[404097396,1769830232867,-500.0,0.00016373,2]
[404097398,1769830232876,-500.0,0.00016373,2]
[404097400,1769830232885,-456.11173433,0.00016373,2]
[404097402,1769830232895,-500.0,0.00016373,2]
[404097404,1769830232904,-500.0,0.00016373,2]
[404097405,1769830232914,-500.42788655,0.00016373,2]
[404097406,1769830232923,-500.0,0.00016373,2]
[404097407,1769830232932,-199.73324221,0.00016373,2]
[404097409,1769830232942,-500.40784056,0.00016373,2]
[404097411,1769830232952,-490.46772664,0.00016373,2]
[404097413,1769830232962,-204.21795451,0.00016373,2]
[404097414,1769830232972,-500.0,0.00016373,2]
[404097415,1769830232981,-500.5694062,0.00016373,2]
[404097416,1769830232991,-500.0,0.00016373,2]
[404097417,1769830233000,-500.0,0.00016373,2]
[404097418,1769830233010,-500.0,0.00016373,2]
[404097419,1769830233020,-500.0,0.00016373,2]
[404097420,1769830233030,-459.79400119,0.00016373,2]
[404097421,1769830233040,-500.0,0.00016373,2]
[404097422,1769830233049,-509.28,0.00016373,2]
[404097423,1769830233059,-1408.2,0.00016484,2]
[404097424,1769830233069,-9031.55084566,0.00016498,2]
[404097425,1769830233078,-2396.18,0.000165,2]
[404097426,1769830233088,-1408.2,0.00016622,2]
[404097427,1769830233098,-509.28,0.00016647,2]
[404097428,1769830233107,-1408.2,0.0001676,2]
[404097429,1769830233117,-500.0,0.0001682,2]
[404097430,1769830233127,-687.0,0.00016831,2]
[404097431,1769830233137,-473.34050397,0.00016838,2]
[404097432,1769830233147,-844.0,0.00016864,2]
[404097433,1769830233157,-1408.2,0.00016897,2]
[404097434,1769830233166,-935.0,0.00016898,2]
[404097435,1769830233176,-829.0,0.00016907,2]
[404097436,1769830233186,-204.46134537,0.00016911,2]
[404097437,1769830233196,-503.45715078,0.00016911,2]
[404097438,1769830233205,-463.26833337,0.00016921,2]
[404097439,1769830233222,-500.97262911,0.00016921,2]
[404097440,1769830233236,-498.32383522,0.00016921,2]
[404097441,1769830233251,-1000.0,0.00016921,2]
[404097442,1769830233262,-1000.0,0.00016921,2]
[404097443,1769830233272,-1000.0,0.00016921,2]
[404097444,1769830233282,-1000.0,0.00016921,2]
[404097445,1769830233292,-502.1700093,0.00016921,2]
[404097446,1769830233301,-1000.0,0.00016921,2]
[404097447,1769830233311,-509.28,0.00016921,2]
[404097448,1769830233321,-733.0,0.0001694,2]
[404097449,1769830233331,-261.0,0.00016962,2]
[404097450,1769830233341,-300.0,0.00016986,4]
[404097451,1769830233351,-248.61,0.00016986,4]
[404097452,1769830233361,-269.46027579,0.00016996,2]
[404097453,1769830233371,-250.0,0.00017,2]
[404097454,1769830233380,-177.88,0.00017017,2]
[404097455,1769830233390,-1938.0,0.00017024,2]
[404097456,1769830233400,-1408.2,0.00017035,2]
[404097457,1769830233410,-183.93,0.00017036,2]
[404097458,1769830233419,-1051.65446873,0.00017058,2]
[404097459,1769830233430,-1008.0,0.00017058,2]
[404097460,1769830233440,-174.61919141,0.00017099,2]
[404097461,1769830233450,-854.2589148,0.00017099,2]
[404097462,1769830233461,-859.80605061,0.00017099,2]
[404097463,1769830233474,-721.12765535,0.00017099,2]
[404097464,1769830233486,-209.40437684,0.00017099,2]
[404097465,1769830233496,-200.0,0.00017123,4]
[404097466,1769830233505,-217.15233878,0.00017154,2]
[404097467,1769830233516,-1408.2,0.00017173,2]
[404097468,1769830233526,-172.36,0.00017178,2]
[404097469,1769830233537,-509.28,0.00017195,2]
[404097470,1769830233546,-225.18697532,0.00017209,2]
[404097471,1769830233556,-624.98333173,0.00017223,2]
[404097472,1769830233566,-233.51889341,0.00017264,2]
[404097473,1769830233576,-1408.2,0.00017311,2]
[404097474,1769830233586,-242.15909246,0.00017319,2]
[404097475,1769830233596,-497.40375625,0.00017328,2]
[404097476,1769830233606,-251.11897888,0.00017374,2]
[404097477,1769830233616,-1186.03183121,0.00017406,2]
[404097478,1769830233626,-260.4103811,0.00017429,2]
[404097479,1769830233636,-1408.2,0.00017449,2]
[404097480,1769830233647,-509.28,0.00017468,2]
[404097481,1769830233656,-1500.0,0.00017468,2]
[404097482,1769830233670,-1500.0,0.00017468,2]
[404097483,1769830233679,-391.91583195,0.00017468,2]
[404097484,1769830233689,-1500.0,0.00017468,2]
[404097485,1769830233699,-1500.0,0.00017468,2]
[404097486,1769830233710,-270.0455652,0.00017484,2]
[404097487,1769830233720,-280.03725112,0.00017539,2]
[404097488,1769830233729,-1408.2,0.00017587,2]
[404097489,1769830233744,-290.39862941,0.00017594,2]
[404097490,1769830233754,-2320.5769,0.000176,2]
[404097491,1769830233764,-160.45250277,0.00017609,2]
[404097492,1769830233774,-202.11400005,0.00017636,2]
[404097493,1769830233784,-508.15549071,0.0001764,2]
[404097494,1769830233794,-250.0,0.0001764,2]
[404097495,1769830233804,-885.86649465,0.00017647,2]
[404097496,1769830233815,-891.61887448,0.00017647,2]
[404097497,1769830233825,-301.1433787,0.00017649,2]
[404097498,1769830233836,-600.0,0.00017698,2]
[404097499,1769830233846,-154.95816503,0.00017699,2]
[404097500,1769830233855,-500.0,0.00017699,2]
[404097501,1769830233865,-500.0,0.00017699,2]
[404097502,1769830233879,-1408.2,0.00017724,2]
[404097503,1769830233890,-1348.289,0.00017728,2]
[404097504,1769830233900,-162.218,0.00017728,2]
[404097505,1769830233909,-3516.764,0.00017728,2]
[404097506,1769830233919,-1435.64,0.00017728,2]
[404097507,1769830233928,-497.23876547,0.00017728,2]
[404097508,1769830235385,-1946.76123453,0.00017728,2]
[404097509,1769830235396,-6576.0,0.00017728,2]
[404097510,1769830235405,-509.28381915,0.00017742,2]
[404097511,1769830235414,-500.0,0.00017754,2]
[404097512,1769830235423,-500.0,0.00017754,2]
[404097513,1769830235433,-20450.0,0.000178,2]
[404097514,1769830235442,-500.0,0.00017809,2]
[404097515,1769830235451,-500.0,0.00017809,2]
[404097516,1769830235460,-173.99211,0.0001782,2]
[404097517,1769830235469,-761.062,0.00017849,2]
[404097518,1769830235478,-179.512,0.00017849,2]
[404097519,1769830235487,-1408.2,0.00017862,2]
[404097520,1769830235496,-500.0,0.00017863,2]
[404097521,1769830235505,-500.0,0.00017863,2]
[404097522,1769830235514,-420.0,0.00017882,2]
[404097523,1769830235523,-4084.66736367,0.00017894,2]
[404097524,1769830235532,-4084.66736367,0.00017897,2]
[404097525,1769830235542,-620.28903566,0.000179,2]
[404097526,1769830235551,-167.31018541,0.000179,2]
[404097527,1769830235560,-4084.66736367,0.000179,2]
[404097528,1769830235569,-677.94051979,0.000179,2]
[404097529,1769830235581,-8934.52478118,0.000179,2]
[404097530,1769830235591,-258.04023167,0.000179,2]
[404097531,1769830235600,-500.0,0.00017918,2]
[404097532,1769830235609,-500.0,0.00017918,2]
[404097533,1769830235618,-173.99211,0.0001792,2]
[404097534,1769830235627,-500.0,0.00017973,2]
[404097535,1769830235637,-258.80799957,0.00017973,2]
[404097536,1769830235646,-502.50546727,0.00017973,2]
[404097537,1769830235655,-522.16475957,0.00017973,2]
[404097538,1769830235664,-163.30496081,0.00017973,2]
[404097539,1769830235674,-500.46237197,0.00017973,2]
[404097540,1769830235683,-559.51898525,0.00017973,2]
[404097541,1769830235692,-500.62768041,0.00017973,2]
[404097542,1769830235701,-500.6120606,0.00017973,2]
[404097543,1769830235710,-501.09894885,0.00017973,2]
[404097544,1769830235720,-500.0,0.00017973,2]
[404097545,1769830235729,-573.90466424,0.00017973,2]
[404097546,1769830235741,-501.96423084,0.00017973,2]
[404097547,1769830235750,-160.24744304,0.00017973,2]
[404097548,1769830235759,-160.23953117,0.00017973,2]
[404097549,1769830235768,-160.24924503,0.00017973,2]
[404097550,1769830235779,-160.49875283,0.00017973,2]
[404097551,1769830235788,-500.40906893,0.00017973,2]
[404097552,1769830235797,-151.07783782,0.00017973,2]
[404097553,1769830235807,-500.41005015,0.00017973,2]
[404097554,1769830235816,-503.11604659,0.00017973,2]
[404097555,1769830235827,-500.0,0.00017973,2]
[404097556,1769830235836,-501.00749123,0.00017973,2]
[404097557,1769830235846,-160.24741201,0.00017973,2]
[404097558,1769830235856,-160.2492428,0.00017973,2]
[404097559,1769830235866,-160.23126936,0.00017973,2]
[404097560,1769830235876,-501.12989903,0.00017973,2]
[404097561,1769830235885,-501.7899496,0.00017973,2]
[404097562,1769830235895,-501.26240396,0.00017973,2]
[404097563,1769830235903,-502.44004829,0.00017973,2]
[404097564,1769830235912,-160.249038,0.00017973,2]
[404097565,1769830235922,-512.80629872,0.00017973,2]
[404097566,1769830235932,-502.68755304,0.00017973,2]
[404097567,1769830235942,-160.25088208,0.00017973,2]
[404097568,1769830235951,-500.92283505,0.00017973,2]
[404097569,1769830235960,-473.07431395,0.00017973,2]
[404097570,1769830235970,-501.78715231,0.00017973,2]
[404097571,1769830235979,-160.400442,0.00017973,2]
[404097572,1769830235988,-160.24840107,0.00017973,2]
[404097573,1769830235997,-500.0,0.00017973,2]
[404097574,1769830236006,-180.27765704,0.00017973,2]
[404097575,1769830236015,-306.004313,0.00017973,2]
[404097576,1769830236065,-193.995687,0.00017973,2]
[404097577,1769830236074,-500.0,0.00017973,2]
[404097578,1769830236083,-501.04327332,0.00017973,2]
[404097579,1769830236092,-500.0,0.00017973,2]
[404097580,1769830236101,-502.60625276,0.00017973,2]
[404097581,1769830236111,-336.3456278,0.00017973,2]
[404097582,1769830236120,-161.41092272,0.00017973,2]
[404097583,1769830236130,-500.0,0.00017973,2]
[404097584,1769830236139,-500.0,0.00017973,2]
[404097585,1769830236148,-151.13386207,0.00017973,2]
[404097586,1769830236158,-500.0,0.00017998,2]
[404097587,1769830236168,-500.0,0.00017998,2]
[404097588,1769830236177,-500.0,0.00017998,2]
[404097589,1769830236186,-500.0,0.00017998,2]
[404097590,1769830236196,-500.0,0.00017998,2]
[404097591,1769830236206,-500.0,0.00017998,2]
[404097592,1769830236215,-301.91594556,0.00017998,2]
[404097593,1769830236224,-500.0,0.00017998,2]
[404097594,1769830236234,-500.0,0.00017998,2]
[404097595,1769830236243,-500.0,0.00017998,2]
[404097596,1769830236252,-500.0,0.00017998,2]
[404097597,1769830236261,-500.0,0.00017998,2]
[404097598,1769830236270,-500.0,0.00017998,2]
[404097599,1769830236279,-419.24626764,0.00017998,2]
[404097600,1769830236288,-500.0,0.00017998,2]
[404097601,1769830236297,-500.0,0.00017998,2]
[404097602,1769830236306,-500.0,0.00017998,2]
[404097603,1769830236315,-508.39182497,0.00017999,2]
[404097604,1769830236324,-513.63248574,0.00017999,2]
[404097605,1769830236333,-500.0,0.00017999,2]
[404097606,1769830236342,-574.67653903,0.00017999,2]
[404097607,1769830236351,-195.87787124,0.00017999,2]
[404097608,1769830236360,-819.0,0.00018,2]
[404097609,1769830236370,-19208.62102369,0.00018,2]
[404097610,1769830236381,-6188.94331907,0.00018,2]
[404097611,1769830236392,-2929.71303019,0.00018,2]
[404097612,1769830236403,-1247.39962148,0.00018,2]
[404097613,1769830236422,-931.037,0.00018,2]
[404097618,1769830240127,-200.0,0.00016466,2]
[404097619,1769830240136,-199.49883578,0.00017617,2]
[404097620,1769830240146,-116.75597947,0.00017617,2]
[404097621,1769830240157,-181.68234762,0.00017617,2]
[404097622,1769830240166,-297.77379246,0.00017617,2]
[404097630,1769830241005,-106.01750754,0.00017617,2]
[404097631,1769830241015,-416.0,0.00017699,2]
[404097632,1769830241024,-1277.531,0.00017728,2]
[404097633,1769830241034,-416.0,0.00017754,2]
[404097634,1769830241043,-416.0,0.00017809,2]
[404097635,1769830241052,-416.0,0.00017863,2]
[404097636,1769830241061,-416.0,0.00017918,2]
[404097637,1769830241070,-416.0,0.00017973,2]
[404097638,1769830241080,-276327.49558133,0.00018,2]
[404097639,1769830241092,-66119.99829531,0.00018,2]
[404097640,1769830241272,-1517.46946338,0.00018,2]
[404097641,1769830241283,-1059.80161734,0.00018,2]
[404097642,1769830241308,-385.69015594,0.00018,2]
[404097653,1769830244663,-189.79721003,0.00018,2]
[404097654,1769830246449,-151.0,0.00016445,2]
[404097655,1769830246459,-2793.03903747,0.000176,2]
[404097657,1769831231209,-159.89,0.00013281,2]
[404097658,1769831231233,-500.0,0.00016373,2]
[404097659,1769831231258,-74.80629971,0.00016373,2]
[404097660,1769831365285,-151.0,0.00016131,2]
[404097661,1769831365308,-151.0,0.00016131,2]
[404097662,1769831365332,-151.0,0.00016133,2]
[404097663,1769831366081,151.0,0.00016133,2]
[404097664,1769831376677,151.0,0.00016182,2]
[404097665,1769831393308,151.0,0.00016182,2]
[404097678,1769831431497,-500.0,0.00016373,2]
[404097679,1769831431508,-500.0,0.00016373,2]
[404097680,1769831431518,-500.0,0.00016373,2]
[404097681,1769831431534,-500.0,0.00016373,2]
[404097682,1769831431546,-425.08236415,0.00016373,2]
[404097683,1769831431556,-1200.0,0.00016523,2]
[404097684,1769831431567,-283.45328179,0.00016524,2]
[404097685,1769831431580,-300.0,0.00016549,2]
[404097686,1769831431589,-3045.1,0.0001655,2]
[404097687,1769831431598,-1778.92144742,0.00016558,2]
[404097688,1769831431614,-241.53855258,0.00016558,2]
[404097689,1769831431624,-59.21531594,0.00016577,2]
[404097690,1769831431651,-748.00966555,0.00016577,2]
[404097723,1769831432984,-792.77501851,0.00016577,2]
[404097724,1769831432994,-166.66,0.00016648,2]
[404097725,1769831433004,-165.61,0.00016712,2]
[404097726,1769831433013,-335.0,0.00016909,2]
[404097727,1769831433023,-363.0,0.00016909,2]
[404097728,1769831433032,-221.0,0.00016912,2]
[404097729,1769831433042,-319.99376726,0.00016921,2]
[404097730,1769831433051,-1000.0,0.00016921,2]
[404097731,1769831433060,-431.25406031,0.00016921,2]
[404097732,1769831433069,-1507.0,0.00016946,2]
[404097733,1769831433079,-300.0,0.00016965,2]
[404097734,1769831433088,-150.99,0.00016966,2]
[404097735,1769831433097,-3455.42,0.00016966,2]
[404097736,1769831433106,-885.03,0.00016966,2]
[404097737,1769831433115,-4999.99,0.00016966,2]
[404097738,1769831433125,-9999.99,0.00016966,2]
[404097739,1769831433134,-151.0,0.00016972,2]
[404097740,1769831433143,-166.66,0.00016999,2]
[404097741,1769831433153,-299.99,0.00016999,4]
[404097742,1769831433162,-151.0,0.00017,2]
[404097743,1769831433171,-250.0,0.00017,2]
[404097744,1769831433180,-637.0,0.00017019,2]
[404097745,1769831433190,-1585.0,0.0001702,2]
[404097746,1769831433199,-269.20124641,0.00017092,2]
[404097747,1769831433208,-322.6107,0.00017099,2]
[404097748,1769831433218,-209.40437684,0.00017099,2]
[404097749,1769831433227,-151.0,0.00017101,2]
[404097750,1769831433237,-217.15233878,0.00017154,2]
[404097751,1769831433246,-500.0,0.00017168,2]
[404097752,1769831433256,-500.0,0.00017168,2]
[404097753,1769831433268,-500.0,0.00017168,2]
[404097754,1769831433277,-500.0,0.00017168,2]
[404097755,1769831433286,-500.0,0.00017168,2]
[404097756,1769831433295,-500.0,0.00017168,2]
[404097757,1769831433305,-500.0,0.00017168,2]
[404097758,1769831433317,-500.0,0.00017168,2]
[404097759,1769831433327,-500.0,0.00017168,2]
[404097760,1769831433336,-854.2589148,0.00017168,2]
[404097761,1769831433347,-588.63089373,0.00017168,2]
[404097762,1769831433356,-354.67552698,0.00017168,2]
[404097763,1769831433365,-151.0,0.00017168,2]
[404097764,1769831433374,-151.0,0.00017168,2]
[404097765,1769831433383,-285.02238618,0.00017168,2]
[404097766,1769831433394,-500.0,0.00017168,2]
[404097767,1769831433403,-500.0,0.00017168,2]
[404097768,1769831433413,-500.0,0.00017168,2]
[404097769,1769831433422,-500.0,0.00017168,2]
[404097770,1769831433431,-500.0,0.00017168,2]
[404097771,1769831433440,-500.0,0.00017168,2]
[404097772,1769831433450,-500.0,0.00017168,2]
[404097773,1769831433459,-500.0,0.00017168,2]
[404097774,1769831433468,-500.0,0.00017168,2]
[404097775,1769831433478,-500.0,0.00017168,2]
[404097776,1769831433487,-500.0,0.00017168,2]
[404097777,1769831433497,-204.86,0.00017168,2]
[404097778,1769831433506,-1453.14,0.00017178,2]
[404097779,1769831433515,-150.0,0.00017178,2]
[404097780,1769831433525,-150.57,0.00017178,2]
[404097781,1769831433535,-360.12,0.00017178,2]
[404097782,1769831433545,-172.31,0.00017178,2]
[404097783,1769831433554,-152.91,0.00017178,2]
[404097784,1769831433563,-300.0,0.00017178,2]
[404097785,1769831433573,-150.0,0.00017178,2]
[404097786,1769831433583,-150.0,0.00017178,2]
[404097787,1769831433592,-190.99,0.00017186,2]
[404097788,1769831433603,-225.18697532,0.00017209,2]
[404097789,1769831433613,-151.0,0.00017229,2]